Workbook

Sheet 4-гранник
A3: Дом | D3: m
B4: l | D4: 7.875
B5: b | D5: 5.25
B6: h1 | D6: 2.5
B7: h2 | D7: 1.7
B8: k (угол) | D8: 25
B9: vk (вынос кровли) | D9: 0.5
B10: окна, м2 | D10: 15
B11: двери, шт | D11: 6
B12: фундамент
B18: Позиция | D18: S, m2 | E18: р./м2 | F18: Всего | G18: %
B19: площадь пола 1, s1 | C19: Пол, вид 1 | D19: =D4*D5 -> 41.34375 | E19: =VLOOKUP(C19,ТАБЛИЦА4,2,0) -> 967.3 | F19: =E19*D19 -> 39991.80937 | G19: =F19/$F$45 -> 0.0199563203
B20: площадь пола 2, s2 | C20: Пол, вид 2 | D20: =D19 -> 41.34375 | E20: =VLOOKUP(C20,ТАБЛИЦА4,2,0) -> 623.7231927 | F20: 25787.05575 | G20: =F20/$F$45 -> 0.01286800353
B21: площадь перекрытия (чердак), s2 | C21: Фанера 6 мм | D21: 1 | E21: =VLOOKUP(C21,ТАБЛИЦА5,2,0) -> 14783.55 | F21: =E21*D21 -> 14783.55 | G21: =F21/$F$45 -> 0.00737714206
B22: площадь стен, ss1 | C22: Структура стены 1 | D22: =(D4*2+D5*2)*D6 -> 65.625 | E22: =VLOOKUP(C22,ТАБЛИЦА3,2,0) -> 1341.315238 | F22: =E22*D22 -> 88023.81251 | G22: 0.0439247792
B23: площадь стен, ss2 | C23: Структура стены 1 | D23: =(D4*2+D5*2)*D7 -> 44.625 | E23: =VLOOKUP(C23,ТАБЛИЦА3,2,0) -> 1341.315238 | F23: =E23*D23 -> 59856.1925 | G23: 0.02986884986
B24: площадь внутренних перегородок, м2 | C24: Панель Q-Home 88 | D24: 25.5 | E24: =VLOOKUP(C24,ТАБЛИЦА6,2,0) -> 64328.55 | F24: =E24*D24 -> 1640378.025 | G24: 0.8185653461
B25: длина стропил. ноги с выносом, м | C25: Не очень въехал пока что в это :))) | D25: =(D5/2+D9)/COS(RADIANS(D8)) -> 3.448055997 | F25: 0 | G25: 0
B26: плошадь кровли, м2 | C26: Металлочерепица | D26: =(D4+D9)*D25*2 -> 57.75493795 | E26: =VLOOKUP(C26,ТАБЛИЦА2,2,0) -> 734.6152382 | F26: 42427.6575 | G26: 0.02117183333
B27: окна, м2 | C27: Окна В | D27: =D10 -> 15 | E27: =VLOOKUP(C27,ТАБЛИЦА7,2,0) -> 3743.6 | F27: 56154 | G27: 0.02802141808
B28: двери | C28: Двери супердеревянные | D28: =D11 -> 6 | E28: =VLOOKUP(C28,ТАБЛИЦА8,2,0) -> 3743.6 | F28: 22461.6 | G28: 0.01120856723
B29: фундамент | C29: Фундамент (буронабивные сваи) | D29: 1 | E29: =VLOOKUP(C29,ТАБЛИЦА,2,0) -> 10611 | F29: 10611 | G29: 0.005294997102 | H29: разложить
B30: лестница (каркас) | C30: Лестница не такая | D30: 1 | E30: =VLOOKUP(C30,ТАБЛИЦА9,2,0) -> 3492.4 | F30: 3492.4 | G30: 0.001742743179
F31: 0 | G31: 0
B32: отопление | C32: С этими полями предлагаю разобраться уже по мере поступления, имея исходные и необходимые данные. Нужно будет, исходя из исходных данных, несколько пересмотреть структуру будущего файла расчетов. | F32: 0 | G32: 0
B33: вентиляция | F33: 0 | G33: 0
B34: водоснабжение | F34: 0 | G34: 0
B35: канализование | F35: 0 | G35: 0
B36: электричество | F36: 0 | G36: 0
B37: ливневка (водоотведение) | F37: 0 | G37: 0
F38: 0 | G38: 0
F39: 0 | G39: 0
F40: 0 | G40: 0
F41: 0 | G41: 0
F42: 0 | G42: 0
F43: 0 | G43: 0
F44: 0 | G44: 0
F45: =SUM(F19:F44) -> 2003967.103 | G45: =SUM(G19:G44) -> 1

Sheet Фундамент
A1: Фундамент (буронабивные сваи)
B2: свая (длина) | C2: 2.5
B3: свая (диаметр) | C3: 0.2
B4: свая (штук) | C4: 27
B5: пирамида армирования | C5: 3 | J5: Фундамент (буронабивные сваи) | K5: =G12 -> 10611
B6: арматура (диаметр), мм | C6: 12 | J6: Фундамент (ленточный) | K6: =G28 -> 37659.75
B9: объем сваи, м3 | C9: =(3.14*(C3/2)^2)*C2 -> 0.0785
B10: суммарный объем | C10: =C9*C4 -> 2.1195 | D10: 3000 | G10: =C10*D10 -> 6358.5
B11: арматура, м | C11: =C5*C2*C4 -> 202.5 | D11: 21 | G11: =D11*C11 -> 4252.5
G12: =SUM(G10:G11) -> 10611
A14: Фундамент (ленточный)
C15: ='4-гранник'!D4 -> 7.875
C16: ='4-гранник'!D5 -> 5.25
C17: =C15 -> 7.875
C18: =C16 -> 5.25
C19: =C17 -> 7.875
C20: =C18 -> 5.25
C21: 2.75
B22: периметр фундамента | C22: =SUM(C15:C21) -> 42.125
B23: толщина | C23: 0.3
B24: высота | C24: 0.9
B26: объем бетона | C26: =C22*C24*C23 -> 11.37375 | D26: 3000 | G26: =C26*D26 -> 34121.25
B27: арматура | C27: =C22*4 -> 168.5 | D27: 21 | G27: =D27*C27 -> 3538.5
G28: =SUM(G26:G27) -> 37659.75
A29: Новый
B30: свая (длина) | C30: 0
B31: свая (диаметр) | C31: 0
B32: свая (штук) | C32: 0
B33: пирамида армирования | C33: 0
B34: арматура (диаметр), мм | C34: 0
B37: объем сваи, м3 | C37: =(3.14*(C31/2)^2)*C30 -> 0
B38: суммарный объем | C38: =C37*C32 -> 0 | D38: 0 | G38: =C38*D38 -> 0
B39: арматура, м | C39: =C33*C30*C32 -> 0 | D39: 0 | G39: =D39*C39 -> 0
G40: =SUM(G38:G39) -> 0

Sheet Перекрытие р.м2
A1: Фанера 6 мм
B2: Фанера (длина) | C2: 2.5
B3: Фанера (ширина) | C3: 6
B4: Фанера (штук) | C4: 27 | H4: Фанера 6 мм | I4: =E12 -> 14783.55
B5: Рублей на кв.м | C5: 146 | H5: Фанера 10 мм | I5: =E25 -> 18174.75
H6: Фанера 12 мм | I6: =E38 -> 20506.2
B9: Объем, м2 | C9: =(3.14*(C3/2)^2)*C2 -> 70.65
B10: суммарный объем | C10: =C4*C9 -> 1907.55 | D10: 3000 | E10: =C10+D10 -> 4907.55
B11: Что-то еще | C11: =C2*C4*C5 -> 9855 | D11: 21 | E11: =C11+D11 -> 9876
E12: =SUM(E10:E11) -> 14783.55
A14: Фанера 10 мм
B15: Фанера (длина) | C15: 2.5
B16: Фанера (ширина) | C16: 10
B17: Фанера (штук) | C17: 27
B18: Рублей на кв.м | C18: 146
B22: Объем, м2 | C22: =(3.14*(C16/2)^2)*C15 -> 196.25
B23: суммарный объем | C23: =C17*C22 -> 5298.75 | D23: 3000 | E23: =C23+D23 -> 8298.75
B24: Что-то еще | C24: =C15*C17*C18 -> 9855 | D24: 21 | E24: =C24+D24 -> 9876
E25: =SUM(E23:E24) -> 18174.75
A27: Фанера 12 мм
B28: Фанера (длина) | C28: 2.5
B29: Фанера (ширина) | C29: 12
B30: Фанера (штук) | C30: 27
B31: Рублей на кв.м | C31: 146
B35: Объем, м2 | C35: =(3.14*(C29/2)^2)*C28 -> 282.6
B36: суммарный объем | C36: =C30*C35 -> 7630.2 | D36: 3000 | E36: =C36+D36 -> 10630.2
B37: Что-то еще | C37: =C28*C30*C31 -> 9855 | D37: 21 | E37: =C37+D37 -> 9876
E38: =SUM(E36:E37) -> 20506.2

Sheet Внутренние перегородки
A1: Панель Q-Home 88
B2: Панель (длина) | C2: 2.5
B3: Панель (ширина) | C3: 6
B4: Панель (штук) | C4: 27
B5: Рублей на кв.м | C5: ='Ц+Р'!C9 -> 880
H6: Панель Q-Home 88 | I6: =E12 -> 64328.55
H7: Панель Q-Home 110 | I7: =E25 -> 82569.75
B9: Объем, м2 | C9: =(3.14*(C3/2)^2)*C2 -> 70.65
B10: суммарный объем | C10: =C4*C9 -> 1907.55 | D10: 3000 | E10: =C10+D10 -> 4907.55
B11: Что-то еще | C11: =C2*C4*C5 -> 59400 | D11: 21 | E11: =C11+D11 -> 59421
E12: =SUM(E10:E11) -> 64328.55
A14: Панель Q-Home 110
B15: Панель (длина) | C15: 2.5
B16: Панель (ширина) | C16: 10
B17: Панель (штук) | C17: 27
B18: Рублей на кв.м | C18: ='Ц+Р'!C10 -> 1100
B22: Объем, м2 | C22: =(3.14*(C16/2)^2)*C15 -> 196.25
B23: суммарный объем | C23: =C17*C22 -> 5298.75 | D23: 3000 | E23: =C23+D23 -> 8298.75
B24: Что-то еще | C24: =C15*C17*C18 -> 74250 | D24: 21 | E24: =C24+D24 -> 74271
E25: =SUM(E23:E24) -> 82569.75

Sheet Стена р.м2
A3: Структура стены | C3: р/м2 | F3: Структура стены 1 | G3: =C10 -> 1341.315238
B4: фасад | C4: ='[1]Ц+Р'!C36 -> 220 | F4: Структура стены (к. мини) | G4: =C20 -> 431.3152382
B5: гидроветрозащита | C5: ='[1]Ц+Р'!C15 -> 14.66666667
B6: утеплитель | C6: ='[1]Ц+Р'!C20 -> 86.65
B7: пароизоляция | C7: ='[1]Ц+Р'!C14 -> 19.99857153
B8: массив | C8: ='Ц+Р'!C9 -> 880
B9: внутренняя облицовка | C9: ='[1]Ц+Р'!C9 -> 120
B10: Итого | C10: =SUM(C4:C9) -> 1341.315238
A13: Структура стены (к. мини) | C13: р/м2
B14: горбыль | C14: 50
B15: гидроветрозащита | C15: ='Ц+Р'!C26 -> 14.66666667
B16: утеплитель, 2х50мм | C16: ='Ц+Р'!C28 -> 86.65
B17: пароизоляция | C17: ='Ц+Р'!C25 -> 19.99857153
B18: каркас | C18: ='Ц+Р'!C7*0.025*0.1*1*2*2 -> 40
B19: внутренняя облицовка | C19: ='Ц+Р'!C39 -> 220
B20: Итого | C20: =SUM(C14:C19) -> 431.3152382

Sheet Кровля р.м2
A1: Кровля Металлочерепица цена, р/м2 | C1: р/м2
B2: Кровля, металлочерепица | C2: ='Ц+Р'!C6 -> 220
B3: гидроветозащита | C3: ='Ц+Р'!C26 -> 14.66666667 | F3: Металлочерепица | G3: =C8 -> 734.6152382
B4: утеплитель 2х50мм | C4: ='Ц+Р'!C28*3 -> 259.95 | F4: Мягкая кровля | G4: =C17 -> 1344.665238
B5: пароизоляция | C5: ='Ц+Р'!C25 -> 19.99857153 | F5: Профлист (Оцинковка) | G5: =C26 -> 444.6652382
B6: внутренняя отделка | C6: ='Ц+Р'!C35 -> 120
B7: стропильная система, каркас | C7: 100
C8: =SUM(C2:C7) -> 734.6152382
A10: Кровля мягкая цена, р/м2 | C10: р/м2
B11: Кровля мягкая | C11: ='Ц+Р'!C5 -> 400
B12: гидроветозащита | C12: ='Ц+Р'!C26 -> 14.66666667
B13: утеплитель 2х50мм | C13: ='Ц+Р'!C37*3 -> 690
B14: пароизоляция | C14: ='Ц+Р'!C25 -> 19.99857153
B15: внутренняя отделка | C15: ='Ц+Р'!C35 -> 120
B16: стропильная система, каркас | C16: 100
C17: =SUM(C11:C16) -> 1344.665238
A19: Кровля Профлист (Оцинковка) цена, р/м2 | C19: р/м2
B20: Кровля Профлист (Оцинковка) | C20: ='Ц+Р'!C4 -> 190
B21: гидроветозащита | C21: ='Ц+Р'!C26 -> 14.66666667
B22: утеплитель 2х50мм | C22: ='Ц+Р'!C46*3 -> 0
B23: пароизоляция | C23: ='Ц+Р'!C25 -> 19.99857153
B24: внутренняя отделка | C24: ='Ц+Р'!C35 -> 120
B25: стропильная система, каркас | C25: 100
C26: =SUM(C20:C25) -> 444.6652382

Sheet Пол, м2
A1: Пол | C1: р/м2 | D1: р/м2
B2: лаги | C2: =(0.1*0.05*1)*'Ц+Р'!C7*2.2 -> 44 | D2: =C2 -> 44
B3: утеплитель 2х50мм | C3: ='Ц+Р'!C28*2 -> 173.3 | F3: Пол, вид 1 | G3: =C10 -> 967.3
B4: фанера, osb 12мм | D4: ='Ц+Р'!C14 -> 179.7231927 | F4: Пол, вид 2 | G4: =D10 -> 623.7231927
B5: доска половая, 28мм | C5: ='Ц+Р'!C40 -> 350
B6: ламинат | C6: ='Ц+Р'!C41 -> 400 | D6: =C6 -> 400
C10: =SUM(C2:C9) -> 967.3 | D10: =SUM(D2:D9) -> 623.7231927

Sheet Окна
A1: Окна А
B2: Панель (длина) | C2: 1.2
B3: Панель (ширина) | C3: 2
B4: Панель (штук) | C4: 2 | H4: Окна А | I4: =E12 -> 5140.536
B5: Рублей на кв.м | C5: ='Ц+Р'!C9 -> 880 | H5: Окна В | I5: =E25 -> 3743.6
B9: Объем, м2 | C9: =(3.14*(C3/2)^2)*C2 -> 3.768
B10: суммарный объем | C10: =C4*C9 -> 7.536 | D10: 3000 | E10: =C10+D10 -> 3007.536
B11: Что-то еще | C11: =C2*C4*C5 -> 2112 | D11: 21 | E11: =C11+D11 -> 2133
E12: =SUM(E10:E11) -> 5140.536
A14: Окна В
B15: Панель (длина) | C15: 2.5
B16: Панель (ширина) | C16: 6
B17: Панель (штук) | C17: 4
B18: Рублей на кв.м | C18: ='Ц+Р'!C22 -> 44
B22: Объем, м2 | C22: =(3.14*(C16/2)^2)*C15 -> 70.65
B23: суммарный объем | C23: =C17*C22 -> 282.6 | D23: 3000 | E23: =C23+D23 -> 3282.6
B24: Что-то еще | C24: =C15*C17*C18 -> 440 | D24: 21 | E24: =C24+D24 -> 461
E25: =SUM(E23:E24) -> 3743.6

Sheet Двери
A1: Двери деревянные
B2: Панель (длина) | C2: 1.2
B3: Панель (ширина) | C3: 2
B4: Панель (штук) | C4: 2 | H4: Двери деревянные | I4: =E12 -> 5140.536
B5: Рублей на кв.м | C5: ='Ц+Р'!C9 -> 880 | H5: Двери супердеревянные | I5: =E25 -> 3743.6
H6: Двери реально дубовые | I6: =E38 -> 3316.536
B9: Объем, м2 | C9: =(3.14*(C3/2)^2)*C2 -> 3.768
B10: суммарный объем | C10: =C4*C9 -> 7.536 | D10: 3000 | E10: =C10+D10 -> 3007.536
B11: Что-то еще | C11: =C2*C4*C5 -> 2112 | D11: 21 | E11: =C11+D11 -> 2133
E12: =SUM(E10:E11) -> 5140.536
A14: Двери супердеревянные
B15: Панель (длина) | C15: 2.5
B16: Панель (ширина) | C16: 6
B17: Панель (штук) | C17: 4
B18: Рублей на кв.м | C18: ='Ц+Р'!C22 -> 44
B22: Объем, м2 | C22: =(3.14*(C16/2)^2)*C15 -> 70.65
B23: суммарный объем | C23: =C17*C22 -> 282.6 | D23: 3000 | E23: =C23+D23 -> 3282.6
B24: Что-то еще | C24: =C15*C17*C18 -> 440 | D24: 21 | E24: =C24+D24 -> 461
E25: =SUM(E23:E24) -> 3743.6
A27: Двери реально дубовые
B28: Панель (длина) | C28: 1.2
B29: Панель (ширина) | C29: 2
B30: Панель (штук) | C30: 2
B31: Рублей на кв.м | C31: ='Ц+Р'!C35 -> 120
B35: Объем, м2 | C35: =(3.14*(C29/2)^2)*C28 -> 3.768
B36: суммарный объем | C36: =C30*C35 -> 7.536 | D36: 3000 | E36: =C36+D36 -> 3007.536
B37: Что-то еще | C37: =C28*C30*C31 -> 288 | D37: 21 | E37: =C37+D37 -> 309
E38: =SUM(E36:E37) -> 3316.536

Sheet Лестница
A1: Лестница такая
B2: Панель (длина) | C2: 1.2
B3: Панель (ширина) | C3: 3
B4: Панель (штук) | C4: 2
B5: Рублей на кв.м | C5: ='Ц+Р'!C9 -> 880 | H5: Лестница такая | I5: =E12 -> 5149.956
H6: Лестница не такая | I6: =E25 -> 3492.4
B9: Объем, м2 | C9: =(3.14*(C3/2)^2)*C2 -> 8.478
B10: суммарный объем | C10: =C4*C9 -> 16.956 | D10: 3000 | E10: =C10+D10 -> 3016.956
B11: Что-то еще | C11: =C2*C4*C5 -> 2112 | D11: 21 | E11: =C11+D11 -> 2133
E12: =SUM(E10:E11) -> 5149.956
A14: Лесница не такая
B15: Панель (длина) | C15: 2.5
B16: Панель (ширина) | C16: 2
B17: Панель (штук) | C17: 4
B18: Рублей на кв.м | C18: ='Ц+Р'!C22 -> 44
B22: Объем, м2 | C22: =(3.14*(C16/2)^2)*C15 -> 7.85
B23: суммарный объем | C23: =C17*C22 -> 31.4 | D23: 3000 | E23: =C23+D23 -> 3031.4
B24: Что-то еще | C24: =C15*C17*C18 -> 440 | D24: 21 | E24: =C24+D24 -> 461
E25: =SUM(E23:E24) -> 3492.4

Sheet Ц+Р
B1: Позиция | C1: р/м2 | D1: длина, м | E1: ширина, м | F1: толщина, м
A2: вн | B2: гипсокартон, р/м2 | C2: 60
A3: вн | B3: панель МДФ 1,22х2,44 | C3: 300
A4: кровля | B4: профлист оцинковка, р/м2 | C4: 190
A5: кровля | B5: мягкая кровля, р,м2 | C5: 400
A6: кровля | B6: кровля,проф.лист, р.м2 | C6: 220
A7: материал | B7: доска обрезная | C7: 4000
A8: материал | B8: панель Q-home, м3 | C8: 10000
A9: материал | B9: панель Q-home, 2700x900x88 mm | C9: =C8*(D9*E9*F9)/(D9*E9) -> 880 | D9: 2.7 | E9: 0.9 | F9: 0.088
A10: материал | B10: панель Q-home, 2700x900x110 mm | C10: =C8*(D10*E10*F10)/(D10*E10) -> 1100 | D10: 2.7 | E10: 1.1 | F10: 0.11
A11: материал | B11: бетон от, р/м3 | C11: =H11*F11 -> 155 | D11: 1 | E11: 0.6 | F11: 0.05 | G11: =F11*E11*D11*10 -> 0.3 | H11: 3100
A12: материал | B12: OSB 6мм 1,22х2,244 | C12: =D12/(E12*F12) -> 120.9352325 | D12: 360 | E12: 1.22 | F12: 2.44
A13: материал | B13: OSB 9мм 1,22х2,244 | C13: =D13/(E13*F13) -> 129.3335125 | D13: 385 | E13: 1.22 | F13: 2.44
A14: материал | B14: OSB 12мм 1,22х2,244 | C14: 179.7231927 | D14: 535 | E14: 1.22 | F14: 2.44
A15: материал | B15: OSB 18мм 1,22х2,244 | C15: 290.5804891 | D15: 865 | E15: 1.22 | F15: 2.44
A16: материал | B16: ЦСП 8мм 1,22х2,44 | C16: 195.1760279 | D16: 581 | E16: 1.22 | F16: 2.44
A17: материал | B17: ЦСП 10мм 1,25х2,7 (3,2) | C17: 173 | D17: 692 | E17: 1.25 | F17: 2.7
A18: материал | B18: ЦСП 12мм 1,25х2,7 (3,2) | C18: 173 | D18: 800 | E18: 1.25 | F18: 2.7
A19: материал | B19: фанера, 6мм, р/м2 | C19: =340/(1.525*1.525) -> 146.1972588
A20: материал | B20: фанера, 10мм, р/м2 | C20: =430/(1.525*1.525) -> 184.8965332
A21: материал | B21: фанера, 12мм, р/м2 | C21: =540/(1.525*1.525) -> 232.1956463
A22: теплоиз | B22: вспененный полиэтилен 10мм,ал-1 р/м2 | C22: 44
A23: теплоиз | B23: вспененный полиэтилен 10мм,мет-1 р/м2 | C23: 42
A24: теплоиз | B24: вспененный полиэтилен 10мм, р/м2 | C24: 31
A25: теплоиз | B25: пароизоляция, м2 (1500х46,7) | C25: =1400/(1.5*46.67) -> 19.99857153
A26: теплоиз | B26: гидроветрозащита, м2 (60м2) | C26: =880/60 -> 14.66666667
A27: теплоиз | B27: Базальтовые маты | D27: длина, м | E27: ширина, м | F27: толщина, м | H27: цена м3
A28: теплоиз | B28: ЛайтБатс, р/м2 | C28: =H28*F28 -> 86.65 | D28: 1 | E28: 0.6 | F28: 0.05 | G28: =F28*E28*D28*10 -> 0.3 | H28: 1733
A29: теплоиз | B29: Rokwool Фасад, р/м2 | C29: =H29*F29 -> 279 | D29: 1 | E29: 0.6 | F29: 0.05 | G29: =F29*E29*D29*10 -> 0.3 | H29: 5580
A30: теплоиз | B30: пенополистирольная крошка р/м2 | C30: =H30*F30 -> 50 | D30: 1 | E30: 0.6 | F30: 0.05 | G30: =F30*E30*D30*10 -> 0.3 | H30: 1000
A31: теплоиз | B31: Базалбтин | C31: =H31*F31 -> 65 | D31: 1 | E31: 0.6 | F31: 0.05 | G31: =F31*E31*D31*10 -> 0.3 | H31: 1300
A32: отделка | B32: сендвич панель, р/м2 | C32: 1300
A33: отделка | B33: сайдинг виниловый, р/м2 | C33: 130
A34: отделка | B34: сайдинг метал, р/м2 | C34: 270
A35: отделка | B35: вагонка дерево от, р/м2 | C35: 120
A36: отделка | B36: стекло (самое дешевое), р/м2 | C36: 165
A37: отделка | B37: банерная печать от, р/м2 | C37: 230
A38: отделка | B38: блок хаус, р/м2 | C38: 280
A39: отделка | B39: имитация бруса, рм2 | C39: 220
A40: материал | B40: доска половая, 28мм | C40: 350
A41: материал | B41: ламинат | C41: 400
A42: материал | B42: линолеум | C42: 200

Sheet Формы
A1: Новый
B2: свая (длина) | C2: 0
B3: свая (диаметр) | C3: 0
B4: свая (штук) | C4: 0
B5: пирамида армирования | C5: 0
B6: арматура (диаметр), мм | C6: 0
B9: объем сваи, м3 | C9: =(3.14*(C3/2)^2)*C2 -> 0
B10: суммарный объем | C10: =C9*C4 -> 0 | D10: 0 | G10: =C10*D10 -> 0
B11: арматура, м | C11: =C5*C2*C4 -> 0 | D11: 0 | G11: =D11*C11 -> 0
G12: =SUM(G10:G11) -> 0
